[Event "Championnat du monde jeunes U10"]
[Date "2024.11.20"]
[White "Nikitakis, Michail"]
[Black "Fuentes de Nova, Sebastian"]
[WhiteElo "1818"]
[BlackElo "1929"]
[Round "6.14"]
[Result "0-1"]
[TimeControl "5400+30"]

1. e4 {[%clk 1:30:56]} 1... e5 {[%clk 1:30:48]} 2. Nf3 {[%clk 1:31:23]} 2... Nc6
{[%clk 1:31:06]} 3. Bb5 {[%clk 1:31:46]} 3... a6 {[%clk 1:31:13]} 4. Ba4 {[%clk
1:32:08]} 4... Nf6 {[%clk 1:31:19]} 5. O-O {[%clk 1:32:16]} 5... Nxe4 {[%clk
1:31:41]} 6. d4 {[%clk 1:32:36]} 6... b5 {[%clk 1:32:01]} 7. Bb3 {[%clk
1:33:01]} 7... d5 {[%clk 1:32:22]} 8. dxe5 {[%clk 1:33:25]} 8... Be6 {[%clk
1:32:46]} 9. Nbd2 {[%clk 1:33:41]} 9... Nc5 {[%clk 1:33:06]} 10. c3 {[%clk
1:34:05]} 10... d4 {[%clk 1:33:24]} 11. Bxe6 {[%clk 1:33:43]} 11... Nxe6 {[%clk
1:33:41]} 12. cxd4 {[%clk 1:31:59]} 12... Ncxd4 {[%clk 1:34:03]} 13. a4 {[%clk
1:32:03]} 13... Bb4 {[%clk 1:34:14]} 14. axb5 {[%clk 1:32:10]} 14... Nxb5 {[%clk
1:34:34]} 15. Qe2 {[%clk 1:29:18]} 15... O-O {[%clk 1:28:09]} 16. Ne4 {[%clk
1:18:15]} 16... Nbd4 {[%clk 1:18:28]} 17. Qd3 {[%clk 0:58:31]} 17... Qd5 {[%clk
1:10:18]} 18. Nfg5 {[%clk 0:55:19]} 18... Nxg5 {[%clk 1:08:37]} 19. Nxg5 {[%clk
0:49:41]} 19... g6 {[%clk 1:06:09]} 20. Be3 {[%clk 0:44:16]} 20... Nf3+ {[%clk
1:05:45]} 0-1

[Variant "Standard"]
[Site "Europe Echecs"]

[Event "Championnat du monde jeunes U10"]
[Date "2024.11.20"]
[White "Andre, Tomas"]
[Black "Mulay, Vivan Prakash"]
[WhiteElo "1928"]
[BlackElo "1823"]
[Round "6.15"]
[Result "1/2-1/2"]
[TimeControl "5400+30"]

1. e4 {[%clk 1:30:22]} 1... c5 {[%clk 1:30:57]} 2. Nf3 {[%clk 1:30:42]} 2... d6
{[%clk 1:31:22]} 3. d4 {[%clk 1:31:05]} 3... cxd4 {[%clk 1:31:49]} 4. Nxd4
{[%clk 1:31:26]} 4... Nf6 {[%clk 1:32:18]} 5. Nc3 {[%clk 1:31:48]} 5... a6
{[%clk 1:32:47]} 6. f4 {[%clk 1:31:54]} 6... e6 {[%clk 1:33:16]} 7. Qf3 {[%clk
1:32:05]} 7... Qc7 {[%clk 1:33:20]} 8. g4 {[%clk 1:30:13]} 8... b5 {[%clk
1:33:08]} 9. Bg2 {[%clk 1:25:41]} 9... Bb7 {[%clk 1:33:02]} 10. g5 {[%clk
1:25:51]} 10... Nfd7 {[%clk 1:33:11]} 11. Nce2 {[%clk 1:24:03]} 11... Be7 {[%clk
1:32:27]} 12. Ng3 {[%clk 1:24:01]} 12... Nc6 {[%clk 1:32:14]} 13. Be3 {[%clk
1:18:30]} 13... O-O {[%clk 1:23:32]} 14. O-O-O {[%clk 1:12:41]} 14... Rac8
{[%clk 1:20:02]} 15. Qf2 {[%clk 1:10:01]} 15... Nc5 {[%clk 1:09:16]} 16. h4
{[%clk 1:09:21]} 16... Na4 {[%clk 1:04:44]} 17. Kb1 {[%clk 1:05:39]} 17... Na5
{[%clk 1:01:16]} 18. Bc1 {[%clk 1:05:14]} 18... Qb6 {[%clk 0:52:44]} 19. Qg1
{[%clk 1:02:31]} 19... b4 {[%clk 0:50:09]} 20. g6 {[%clk 1:01:39]} 20... Nc5
{[%clk 0:42:04]} 21. gxf7+ {[%clk 1:01:18]} 21... Kxf7 {[%clk 0:42:15]} 22. Nxe6
{[%clk 0:53:21]} 22... Kxe6 {[%clk 0:36:21]} 23. Bh3+ {[%clk 0:53:42]} 23... Kf7
{[%clk 0:36:37]} 24. Nf5 {[%clk 0:53:57]} 24... g6 {[%clk 0:34:03]} 25. Nxe7
{[%clk 0:52:52]} 25... Kxe7 {[%clk 0:33:00]} 26. Bxc8 {[%clk 0:50:42]} 26...
Rxc8 {[%clk 0:32:24]} 27. h5 {[%clk 0:50:11]} 27... b3 {[%clk 0:21:56]} 28. Qg5+
Ke8 {[%clk 0:21:56]} 29. axb3 Naxb3 {[%clk 0:21:56]} 30. Rhe1 Nxc1 {[%clk
0:21:56]} 31. hxg6 Na4 {[%clk 0:21:56]} 32. Qf6 Nc3+ {[%clk 0:21:56]} 33. Kxc1
Na2+ {[%clk 0:21:56]} 34. Kb1 1/2-1/2

[Variant "Standard"]
[Site "Europe Echecs"]

[Event "Championnat du monde jeunes U10"]
[Date "2024.11.20"]
[White "Nguyen Quang Anh"]
[Black "Kazimzade, Mahammad"]
[WhiteElo "1889"]
[BlackElo "1687"]
[Round "6.16"]
[Result "1-0"]
[TimeControl "5400+30"]

1. d4 {[%clk 1:30:56]} 1... Nf6 {[%clk 1:30:46]} 2. c4 {[%clk 1:31:00]} 2... e6
{[%clk 1:30:36]} 3. Nc3 {[%clk 1:30:49]} 3... Bb4 {[%clk 1:30:14]} 4. f3 {[%clk
1:29:36]} 4... d5 {[%clk 1:29:58]} 5. a3 {[%clk 1:29:09]} 5... Bxc3+ {[%clk
1:29:54]} 6. bxc3 {[%clk 1:29:22]} 6... c5 {[%clk 1:30:08]} 7. cxd5 {[%clk
1:28:23]} 7... Nxd5 {[%clk 1:30:22]} 8. dxc5 {[%clk 1:27:38]} 8... Qa5 {[%clk
1:30:40]} 9. e4 {[%clk 1:27:17]} 9... Nf6 {[%clk 1:30:42]} 10. Be3 {[%clk
1:26:26]} 10... O-O {[%clk 1:29:26]} 11. Ne2 {[%clk 1:25:51]} 11... Nfd7 {[%clk
1:29:05]} 12. Kf2 {[%clk 1:21:48]} 12... Na6 {[%clk 1:26:47]} 13. c6 {[%clk
1:18:07]} 13... bxc6 {[%clk 1:25:42]} 14. Qc2 {[%clk 1:01:41]} 14... Nac5 {[%clk
1:17:43]} 15. Nd4 {[%clk 0:57:50]} 15... Bb7 {[%clk 1:17:00]} 16. Be2 {[%clk
0:56:09]} 16... Na4 {[%clk 1:13:14]} 17. Rhb1 {[%clk 0:52:25]} 17... Rab8 {[%clk
1:11:56]} 18. Rb4 {[%clk 0:45:44]} 18... Nab6 {[%clk 1:10:04]} 19. a4 {[%clk
0:40:27]} 19... Qh5 {[%clk 1:05:28]} 20. f4 {[%clk 0:37:02]} 20... Qh4+ {[%clk
1:05:37]} 21. Kg1 {[%clk 0:37:21]} 21... c5 {[%clk 1:05:54]} 22. Nf3 {[%clk
0:37:41]} 22... Qh6 {[%clk 1:04:22]} 23. Rb2 {[%clk 0:34:44]} 23... Nf6 {[%clk
1:03:29]} 24. Ng5 {[%clk 0:33:40]} 24... e5 {[%clk 0:58:42]} 25. Bxc5 {[%clk
0:19:43]} 25... Rfe8 {[%clk 0:45:09]} 26. Bxb6 axb6 {[%clk 0:45:09]} 27. Bc4
{[%clk 0:16:36]} 27... Re7 {[%clk 0:42:21]} 28. Rxb6 {[%clk 0:13:17]} 28... Rf8
{[%clk 0:29:46]} 29. Qb3 {[%clk 0:11:56]} 29... Bc8 {[%clk 0:25:03]} 30. Rf1
{[%clk 0:05:49]} 30... Qg6 {[%clk 0:20:28]} 31. Nxf7 {[%clk 0:03:43]} 31...
Rfxf7 {[%clk 0:20:12]} 32. Rb8 {[%clk 0:03:24]} 32... Rc7 {[%clk 0:19:47]} 33.
Bxf7+ {[%clk 0:03:43]} 33... Qxf7 {[%clk 0:19:47]} 34. Qxf7+ Kxf7 {[%clk
0:20:37]} 35. fxe5 {[%clk 0:04:30]} 35... Ba6 {[%clk 0:20:59]} 36. Rf2 {[%clk
0:04:40]} 36... Rxc3 {[%clk 0:21:23]} 37. h3 {[%clk 0:04:38]} 37... Rc4 {[%clk
0:20:23]} 38. exf6 {[%clk 0:04:55]} 38... Rxe4 {[%clk 0:19:44]} 39. fxg7+ Kxg7
{[%clk 0:20:07]} 40. Ra2 {[%clk 0:04:57]} 40... Bc4 {[%clk 0:20:09]} 41. Rab2
{[%clk 0:04:55]} 41... Bd5 {[%clk 0:17:22]} 42. a5 {[%clk 0:05:05]} 42... Ra4
{[%clk 0:17:45]} 43. R8b5 {[%clk 0:05:16]} 43... Ba8 {[%clk 0:17:24]} 44. Kf2
{[%clk 0:05:05]} 44... Ra3 {[%clk 0:17:44]} 45. Rd2 {[%clk 0:05:23]} 45... Be4
{[%clk 0:17:20]} 46. h4 {[%clk 0:05:40]} 46... Kf6 {[%clk 0:17:10]} 47. h5
{[%clk 0:05:35]} 47... Kg7 {[%clk 0:17:02]} 48. Rb6 {[%clk 0:05:47]} 48... Kf7
{[%clk 0:17:04]} 49. Rd7+ {[%clk 0:06:07]} 49... Ke8 {[%clk 0:17:28]} 50. Ra7
{[%clk 0:06:32]} 1-0

[Variant "Standard"]
[Site "Europe Echecs"]

[Event "Championnat du monde jeunes U10"]
[Date "2024.11.20"]
[White "Zhang, Oscar Y"]
[Black "Meitzner, Jonathan Franz"]
[WhiteElo "1817"]
[BlackElo "1876"]
[Round "6.17"]
[Result "0-1"]
[TimeControl "5400+30"]

1. e4 {[%clk 1:30:57]} 1... c5 {[%clk 1:30:53]} 2. Nf3 {[%clk 1:31:19]} 2... e6
{[%clk 1:31:14]} 3. d4 {[%clk 1:31:41]} 3... cxd4 {[%clk 1:31:38]} 4. Nxd4
{[%clk 1:32:05]} 4... Nc6 {[%clk 1:32:02]} 5. Nc3 {[%clk 1:32:28]} 5... Qc7
{[%clk 1:32:19]} 6. Be2 {[%clk 1:32:46]} 6... a6 {[%clk 1:30:49]} 7. O-O {[%clk
1:32:55]} 7... Nf6 {[%clk 1:31:03]} 8. Be3 {[%clk 1:33:12]} 8... Be7 {[%clk
1:31:12]} 9. f4 {[%clk 1:32:55]} 9... d6 {[%clk 1:30:58]} 10. Qe1 {[%clk
1:32:58]} 10... O-O {[%clk 1:28:36]} 11. Qg3 {[%clk 1:32:58]} 11... Kh8 {[%clk
1:27:14]} 12. Rad1 {[%clk 1:32:20]} 12... Bd7 {[%clk 1:26:47]} 13. Kh1 {[%clk
1:25:19]} 13... Rab8 {[%clk 1:24:31]} 14. a4 {[%clk 1:25:32]} 14... Rbd8 {[%clk
1:18:36]} 15. Bf3 {[%clk 1:13:26]} 15... Na5 {[%clk 1:11:05]} 16. Be2 {[%clk
1:01:34]} 16... Nc4 {[%clk 1:03:39]} 17. Bc1 {[%clk 1:00:53]} 17... Nb6 {[%clk
0:59:43]} 18. b3 {[%clk 0:56:27]} 18... e5 {[%clk 0:53:17]} 19. fxe5 {[%clk
0:44:29]} 19... dxe5 {[%clk 0:51:00]} 20. Bb2 {[%clk 0:44:37]} 20... Rc8 {[%clk
0:50:05]} 21. Nf5 {[%clk 0:41:28]} 21... Bxf5 {[%clk 0:45:48]} 22. Rxf5 {[%clk
0:41:17]} 22... Bb4 {[%clk 0:45:14]} 23. Nd5 {[%clk 0:33:43]} 23... Nbxd5 {[%clk
0:38:25]} 24. exd5 {[%clk 0:24:43]} 24... Qxc2 {[%clk 0:36:07]} 25. Bxe5 {[%clk
0:21:50]} 25... Qxf5 {[%clk 0:34:03]} 26. Rf1 {[%clk 0:21:28]} 26... Qg6 {[%clk
0:32:24]} 27. Qf3 {[%clk 0:20:53]} 27... Rfe8 {[%clk 0:25:19]} 28. Bb2 {[%clk
0:20:26]} 28... Qe4 {[%clk 0:22:52]} 29. Bxf6 {[%clk 0:17:39]} 29... Qxf3 {[%clk
0:22:46]} 30. Bxg7+ {[%clk 0:17:51]} 30... Kxg7 {[%clk 0:23:12]} 31. Bxf3 {[%clk
0:18:13]} 31... Re1 {[%clk 0:23:18]} 32. Rxe1 {[%clk 0:18:31]} 32... Bxe1 {[%clk
0:23:40]} 33. g4 {[%clk 0:18:36]} 33... Rc3 {[%clk 0:23:39]} 34. Be4 {[%clk
0:18:54]} 34... Rxb3 {[%clk 0:23:28]} 35. d6 {[%clk 0:18:39]} 35... Rb4 {[%clk
0:23:20]} 36. d7 {[%clk 0:18:50]} 36... Bh4 {[%clk 0:23:36]} 37. g5 {[%clk
0:19:04]} 37... Bxg5 {[%clk 0:23:56]} 38. Bf5 {[%clk 0:19:22]} 38... Rxa4 {[%clk
0:24:14]} 39. h4 {[%clk 0:19:31]} 39... Rxh4+ {[%clk 0:24:35]} 40. Kg1 {[%clk
0:19:49]} 40... b5 {[%clk 0:24:53]} 41. Kf2 {[%clk 0:19:36]} 41... Rf4+ {[%clk
0:25:17]} 42. Ke2 {[%clk 0:19:58]} 42... Rxf5 {[%clk 0:25:44]} 43. Kd1 {[%clk
0:20:21]} 43... h5 {[%clk 0:26:00]} 44. Ke2 {[%clk 0:20:22]} 44... h4 {[%clk
0:26:22]} 45. Kd3 {[%clk 0:19:53]} 45... h3 {[%clk 0:26:39]} 46. Kc3 {[%clk
0:20:15]} 46... h2 {[%clk 0:27:01]} 47. Kb4 {[%clk 0:20:33]} 47... h1=Q {[%clk
0:27:21]} 48. Kb3 {[%clk 0:20:48]} 48... Qe4 {[%clk 0:27:37]} 49. Kc3 {[%clk
0:21:04]} 49... Rf3+ {[%clk 0:27:59]} 50. Kb2 {[%clk 0:21:25]} 50... Qe2+ {[%clk
0:28:21]} 51. Kb1 {[%clk 0:21:44]} 51... Rf1# {[%clk 0:28:46]} 0-1

[Variant "Standard"]
[Site "Europe Echecs"]

[Event "Championnat du monde jeunes U10"]
[Date "2024.11.20"]
[White "Mrozowski, Nikodem"]
[Black "Zhou, Guoyu"]
[WhiteElo "1874"]
[BlackElo "1809"]
[Round "6.18"]
[Result "1/2-1/2"]
[TimeControl "5400+30"]

1. d4 {[%clk 1:30:49]} 1... d5 {[%clk 1:30:55]} 2. c4 {[%clk 1:31:13]} 2... e6
{[%clk 1:31:19]} 3. g3 {[%clk 1:31:28]} 3... Nf6 {[%clk 1:31:02]} 4. Bg2 {[%clk
1:31:31]} 4... dxc4 {[%clk 1:25:09]} 5. Nf3 {[%clk 1:30:08]} 5... Bd7 {[%clk
1:21:32]} 6. Ne5 {[%clk 1:26:08]} 6... Bc6 {[%clk 1:21:32]} 7. Nxc6 {[%clk
1:25:18]} 7... Nxc6 {[%clk 1:21:49]} 8. Qa4 {[%clk 1:24:22]} 8... Qd7 {[%clk
1:18:42]} 9. e3 {[%clk 1:17:23]} 9... Nb4 {[%clk 1:14:55]} 10. Qxd7+ {[%clk
1:16:10]} 10... Kxd7 {[%clk 1:13:26]} 11. Kd2 {[%clk 1:12:40]} 11... Rb8 {[%clk
1:13:24]} 12. b3 {[%clk 1:12:24]} 12... cxb3 {[%clk 1:11:02]} 13. axb3 {[%clk
1:12:07]} 13... a6 {[%clk 1:11:06]} 14. Ba3 {[%clk 1:11:19]} 14... Be7 {[%clk
1:09:17]} 15. Nc3 {[%clk 1:10:33]} 15... Nbd5 {[%clk 1:07:03]} 16. e4 {[%clk
1:05:10]} 16... Nxc3 {[%clk 1:06:36]} 17. Kxc3 {[%clk 1:05:34]} 17... Bxa3
{[%clk 1:07:02]} 18. Rxa3 {[%clk 1:05:57]} 18... Ke7 {[%clk 1:05:26]} 19. Ra5
{[%clk 0:59:45]} 19... Rhd8 {[%clk 1:04:53]} 20. Kc4 {[%clk 0:57:02]} 20... c6
{[%clk 1:02:58]} 21. b4 {[%clk 0:55:16]} 21... Rd7 {[%clk 1:03:00]} 22. h3
{[%clk 0:54:59]} 22... Rbd8 {[%clk 1:03:13]} 23. Rd1 {[%clk 0:55:20]} 23... Ne8
{[%clk 1:03:33]} 24. e5 {[%clk 0:38:42]} 24... Nc7 {[%clk 1:03:12]} 25. Ra3
{[%clk 0:38:42]} 25... Rxd4+ {[%clk 0:49:38]} 26. Rxd4 {[%clk 0:39:06]} 26...
Rxd4+ {[%clk 0:50:06]} 27. Kxd4 {[%clk 0:39:35]} 27... Nb5+ {[%clk 0:50:35]} 28.
Kc5 {[%clk 0:39:35]} 28... Nxa3 {[%clk 0:51:01]} 29. Kb6 {[%clk 0:34:26]} 29...
Nc2 {[%clk 0:51:24]} 30. Kc5 {[%clk 0:33:02]} 30... Kd7 {[%clk 0:39:42]} 31. Be4
{[%clk 0:30:29]} 31... b6+ {[%clk 0:39:13]} 32. Kxb6 {[%clk 0:28:52]} 32... Nxb4
{[%clk 0:39:38]} 33. Bxh7 {[%clk 0:26:12]} 33... g6 {[%clk 0:39:27]} 34. h4
{[%clk 0:26:37]} 34... Ke7 {[%clk 0:33:07]} 35. h5 {[%clk 0:26:53]} 35... gxh5
{[%clk 0:33:01]} 36. Be4 {[%clk 0:27:07]} 36... f6 {[%clk 0:29:46]} 37. exf6+
{[%clk 0:23:07]} 37... Kxf6 {[%clk 0:30:04]} 38. f4 {[%clk 0:23:34]} 38... Ke7
{[%clk 0:05:56]} 39. Kc5 {[%clk 0:22:08]} 39... a5 {[%clk 0:05:57]} 40. Bg6
{[%clk 0:21:50]} 40... Kf6 {[%clk 0:02:47]} 41. Bxh5 {[%clk 0:20:16]} 41... Nd3+
{[%clk 0:02:23]} 42. Kc4 {[%clk 0:19:04]} 42... Nf2 {[%clk 0:01:22]} 43. Bf3
{[%clk 0:19:20]} 43... Kf5 {[%clk 0:01:22]} 44. Bxc6 {[%clk 0:17:13]} 44... Ne4
{[%clk 0:01:47]} 45. Kb5 {[%clk 0:16:54]} 45... Nf6 {[%clk 0:01:01]} 46. Bb7
{[%clk 0:16:50]} 46... Kg4 {[%clk 0:00:43]} 47. Bc8 {[%clk 0:17:11]} 1/2-1/2

[Variant "Standard"]
[Site "Europe Echecs"]

[Event "Championnat du monde jeunes U10"]
[Date "2024.11.20"]
[White "Anetov, Amirzhan"]
[Black "Zabelin, Platon"]
[WhiteElo "1767"]
[BlackElo "1870"]
[Round "6.19"]
[Result "1/2-1/2"]
[TimeControl "5400+30"]

1. e4 {[%clk 1:30:58]} 1... c6 {[%clk 1:30:55]} 2. d4 {[%clk 1:31:25]} 2... d5
{[%clk 1:31:21]} 3. Nc3 {[%clk 1:31:52]} 3... dxe4 {[%clk 1:31:44]} 4. Nxe4
{[%clk 1:32:21]} 4... Bf5 {[%clk 1:32:04]} 5. Ng3 {[%clk 1:32:47]} 5... Bg6
{[%clk 1:32:27]} 6. h4 {[%clk 1:33:15]} 6... h6 {[%clk 1:32:46]} 7. Nf3 {[%clk
1:33:42]} 7... Nd7 {[%clk 1:33:11]} 8. h5 {[%clk 1:34:07]} 8... Bh7 {[%clk
1:33:37]} 9. Bd3 {[%clk 1:34:34]} 9... Bxd3 {[%clk 1:34:00]} 10. Qxd3 {[%clk
1:35:02]} 10... e6 {[%clk 1:34:10]} 11. Bd2 {[%clk 1:35:30]} 11... Ngf6 {[%clk
1:34:28]} 12. O-O-O {[%clk 1:35:54]} 12... Be7 {[%clk 1:34:47]} 13. Kb1 {[%clk
1:36:19]} 13... Qb6 {[%clk 1:34:31]} 14. Ne4 {[%clk 1:36:44]} 14... Rd8 {[%clk
1:34:57]} 15. Bf4 {[%clk 1:21:54]} 15... Nxe4 {[%clk 1:28:56]} 16. Qxe4 {[%clk
1:22:16]} 16... Nf6 {[%clk 1:29:22]} 17. Qd3 {[%clk 1:09:35]} 17... O-O {[%clk
1:27:15]} 18. g4 {[%clk 1:06:06]} 18... Nxg4 {[%clk 1:26:51]} 19. Rhg1 {[%clk
0:41:31]} 19... f5 {[%clk 1:20:47]} 20. Qe2 {[%clk 0:39:39]} 20... c5 {[%clk
1:18:11]} 21. d5 {[%clk 0:39:19]} 21... Bf6 {[%clk 1:16:15]} 22. c4 {[%clk
0:32:43]} 22... exd5 {[%clk 1:13:50]} 23. Rxd5 {[%clk 0:31:14]} 23... Rxd5
{[%clk 1:10:42]} 24. cxd5 {[%clk 0:31:39]} 24... c4 {[%clk 1:10:12]} 25. d6
{[%clk 0:23:19]} 25... c3 {[%clk 1:06:58]} 26. Re1 {[%clk 0:16:21]} 26... Qxf2
{[%clk 0:58:40]} 27. bxc3 {[%clk 0:12:46]} 27... Qc5 {[%clk 0:52:53]} 28. Qe6+
{[%clk 0:07:30]} 28... Kh8 {[%clk 0:50:48]} 29. Ne5 Qb5+ {[%clk 0:49:09]} 30.
Qb3 {[%clk 0:06:39]} 30... Qxb3+ {[%clk 0:47:44]} 31. axb3 {[%clk 0:07:04]}
31... Nxe5 {[%clk 0:45:27]} 32. Bxe5 {[%clk 0:07:23]} 32... Bxe5 {[%clk
0:44:28]} 33. Rxe5 {[%clk 0:07:47]} 33... Rd8 {[%clk 0:44:57]} 34. Rd5 {[%clk
0:04:03]} 34... Kg8 {[%clk 0:43:27]} 35. Kc2 {[%clk 0:04:26]} 35... Kf7 {[%clk
0:43:17]} 36. Rxf5+ {[%clk 0:04:04]} 36... Ke6 {[%clk 0:43:46]} 37. Ra5 {[%clk
0:03:02]} 37... a6 {[%clk 0:44:08]} 38. b4 {[%clk 0:01:55]} 38... Rxd6 {[%clk
0:44:32]} 39. b5 {[%clk 0:02:18]} 39... Rd5 {[%clk 0:43:59]} 40. c4 {[%clk
0:02:33]} 40... Rxh5 {[%clk 0:43:39]} 41. bxa6 {[%clk 0:02:53]} 41... Rh2+
{[%clk 0:44:06]} 42. Kc3 {[%clk 0:03:09]} 42... bxa6 {[%clk 0:44:26]} 43. Rxa6+
{[%clk 0:03:30]} 43... Kf5 {[%clk 0:42:04]} 44. Ra5+ {[%clk 0:02:22]} 44... Ke4
{[%clk 0:42:04]} 45. Ra1 {[%clk 0:02:14]} 45... g5 {[%clk 0:36:05]} 46. Re1+
{[%clk 0:02:37]} 46... Kf5 {[%clk 0:36:30]} 47. c5 {[%clk 0:02:01]} 47... Ra2
{[%clk 0:36:55]} 48. Kd4 {[%clk 0:02:06]} 48... g4 {[%clk 0:36:14]} 49. Re5+
{[%clk 0:01:01]} 49... Kf4 {[%clk 0:35:44]} 50. Re4+ {[%clk 0:01:16]} 50... Kf3
{[%clk 0:33:30]} 51. Re3+ {[%clk 0:01:13]} 51... Kf2 {[%clk 0:33:25]} 52. Re6
{[%clk 0:01:26]} 52... Rd2+ {[%clk 0:23:27]} 53. Kc4 {[%clk 0:01:26]} 53... Rc2+
{[%clk 0:23:21]} 54. Kd5 {[%clk 0:01:31]} 54... Rd2+ {[%clk 0:23:15]} 55. Kc4
{[%clk 0:01:55]} 55... h5 {[%clk 0:21:14]} 56. Rh6 {[%clk 0:02:18]} 56... Ke3
{[%clk 0:21:04]} 57. Rxh5 {[%clk 0:02:24]} 57... Rd4+ {[%clk 0:21:28]} 58. Kb5
{[%clk 0:02:48]} 1/2-1/2

[Variant "Standard"]
[Site "Europe Echecs"]

[Event "Championnat du monde jeunes U10"]
[Date "2024.11.20"]
[White "Li, Weilong"]
[Black "Wang, Rocky"]
[WhiteElo "1735"]
[BlackElo "1853"]
[Round "6.20"]
[Result "1-0"]
[TimeControl "5400+30"]

1. e4 {[%clk 1:30:58]} 1... e5 {[%clk 1:30:52]} 2. Nf3 {[%clk 1:31:11]} 2... Nc6
{[%clk 1:31:13]} 3. Bc4 {[%clk 1:31:13]} 3... Nf6 {[%clk 1:31:26]} 4. d3 {[%clk
1:31:34]} 4... d5 {[%clk 1:31:00]} 5. exd5 {[%clk 1:31:51]} 5... Nxd5 {[%clk
1:31:21]} 6. O-O {[%clk 1:31:35]} 6... Bg4 {[%clk 1:30:58]} 7. Re1 {[%clk
1:30:32]} 7... Qd6 {[%clk 1:30:24]} 8. h3 {[%clk 1:20:57]} 8... Bh5 {[%clk
1:30:23]} 9. Nbd2 {[%clk 1:16:09]} 9... O-O-O {[%clk 1:29:57]} 10. Ne4 {[%clk
1:16:14]} 10... Qd7 {[%clk 1:30:17]} 11. Ng3 {[%clk 1:10:52]} 11... Bxf3 {[%clk
1:29:27]} 12. Qxf3 {[%clk 1:11:10]} 12... Nd4 {[%clk 1:29:51]} 13. Qd1 {[%clk
1:11:35]} 13... Nb6 {[%clk 1:24:31]} 14. Bb3 {[%clk 1:04:10]} 14... f6 {[%clk
1:23:38]} 15. Be3 {[%clk 1:04:08]} 15... Kb8 {[%clk 1:16:01]} 16. Ne2 {[%clk
0:58:46]} 16... Bc5 {[%clk 1:06:07]} 17. Nxd4 {[%clk 0:58:50]} 17... Bxd4 {[%clk
1:06:24]} 18. c3 {[%clk 0:59:04]} 18... Bxe3 {[%clk 1:06:05]} 19. Rxe3 {[%clk
0:59:29]} 19... Nd5 {[%clk 1:03:35]} 20. Rf3 {[%clk 0:53:58]} 20... a6 {[%clk
0:58:26]} 21. Qc2 {[%clk 0:51:10]} 21... Rhe8 {[%clk 0:53:43]} 22. Re1 {[%clk
0:48:41]} 22... Qd6 {[%clk 0:48:34]} 23. Bxd5 {[%clk 0:48:05]} 23... Qxd5 {[%clk
0:47:19]} 24. Rfe3 {[%clk 0:47:10]} 24... Rg8 {[%clk 0:36:52]} 25. Qa4 {[%clk
0:46:01]} 25... g5 {[%clk 0:36:38]} 26. d4 {[%clk 0:39:39]} 26... exd4 {[%clk
0:32:39]} 27. Rd3 {[%clk 0:39:52]} 27... Qd7 {[%clk 0:26:12]} 28. Qd1 {[%clk
0:38:32]} 28... c5 {[%clk 0:22:16]} 29. cxd4 {[%clk 0:31:47]} 29... cxd4 {[%clk
0:21:30]} 30. Re4 {[%clk 0:32:09]} 30... Qc7 {[%clk 0:19:46]} 31. Rdxd4 {[%clk
0:31:22]} 31... Rxd4 {[%clk 0:20:02]} 32. Rxd4 {[%clk 0:30:41]} 32... Rc8 {[%clk
0:14:33]} 33. Qe2 {[%clk 0:25:23]} 33... Qc1+ {[%clk 0:10:21]} 34. Rd1 {[%clk
0:25:30]} 34... Qf4 {[%clk 0:10:05]} 35. g3 {[%clk 0:24:27]} 35... Qf5 {[%clk
0:10:17]} 36. Kg2 {[%clk 0:24:48]} 36... Qc2 {[%clk 0:09:13]} 37. Rd2 {[%clk
0:23:29]} 37... Qc6+ {[%clk 0:08:23]} 38. Qf3 {[%clk 0:23:53]} 38... Qe6 {[%clk
0:08:43]} 39. a3 {[%clk 0:24:07]} 39... h5 {[%clk 0:05:55]} 40. Qxh5 {[%clk
0:24:02]} 40... Rc1 {[%clk 0:06:07]} 41. Rd8+ {[%clk 0:20:01]} 41... Rc8 {[%clk
0:02:25]} 42. Rxc8+ {[%clk 0:18:56]} 42... Qxc8 {[%clk 0:02:47]} 43. Qf3 {[%clk
0:19:20]} 43... Qe6 {[%clk 0:02:27]} 44. h4 {[%clk 0:19:40]} 44... gxh4 {[%clk
0:01:54]} 45. gxh4 {[%clk 0:20:03]} 45... Ka8 46. h5 {[%clk 0:19:55]} 46... Qg8+
{[%clk 0:01:48]} 47. Kh3 {[%clk 0:20:16]} 47... Qe6+ {[%clk 0:02:11]} 48. Kh4
{[%clk 0:19:24]} 48... Qe5 {[%clk 0:02:19]} 49. b4 {[%clk 0:17:40]} 49... Qd4+
{[%clk 0:01:36]} 50. Kh3 {[%clk 0:18:02]} 50... Qd7+ {[%clk 0:01:39]} 51. Kg2
{[%clk 0:18:27]} 51... f5 {[%clk 0:01:11]} 52. Qf4 {[%clk 0:17:43]} 52... Qd5+
{[%clk 0:00:54]} 53. Kh2 {[%clk 0:18:08]} 53... Qf7 {[%clk 0:00:57]} 54. h6
{[%clk 0:18:19]} 54... Qh5+ {[%clk 0:01:23]} 55. Kg3 {[%clk 0:18:45]} 55... Qh1
{[%clk 0:01:07]} 56. Qh4 {[%clk 0:17:45]} 56... Qg1+ {[%clk 0:01:24]} 57. Kf4
{[%clk 0:18:12]} 57... Qb1 {[%clk 0:00:45]} 1-0

[Variant "Standard"]
[Site "Europe Echecs"]